Cogmind - Beta 12 @@@ ROGUE MODE // 2023.04.03 @ 05:21:49 Player: Zirov Result: Destroyed by 8R-AWN with 8R-AWN's Boregun Performance ------------- Evolutions (1) 500 Regions Visited (5) 1000 Robots Destroyed (60) 300 Value Destroyed (1351) 1351 Prototype IDs (7) 140 Alien Tech Used (0) 0 Bonus (214) 214 TOTAL SCORE: 3505 Bonus ------- Follower Combat Kills 39 Aligned with FarCom 300 Friendly Fire -125 Cogmind --------- Core Integrity 0/400 Matter 255/300 Energy 100/100 System Corruption 2% Temperature Cool (0) Movement Core (350) Ox6 Location -9/Exiles Parts ------- > --- POWER (1) -------- (None) > --- PROPULSION (3) --- (None) > --- UTILITY (3) ------ Disposable Heat Sink Large Storage Unit > --- WEAPON (2) ------- (None) > --- INVENTORY (15) --- Light Deuterium Engine Light Nuclear Core Aluminum Leg Improved Heat Sink Visual Processing Unit Sensor Array Improved Signal Interpreter Improved EM Shotgun Improved Medium Laser Advanced Beam Cannon Autogun Autogun Autogun Peak State ------------ > --- POWER ------------ Improved Ion Engine > --- PROPULSION ------- Aluminum Leg Aluminum Leg Aluminum Leg > --- UTILITY ---------- Disposable Heat Sink Large Storage Unit Structural Scanner > --- WEAPON ----------- Heavy Assault Rifle Heavy Assault Rifle > --- INVENTORY -------- Improved Ion Engine Light Deuterium Engine Aluminum Leg Aluminum Leg Aluminum Leg Improved Heat Sink Medium Storage Unit Improved Signal Interpreter Seismic Detector Light Armor Plating Small Laser Assault Rifle Light Assault Rifle Light Cannon [Rating: 15] Favorites ----------- Power Improved Ion Engine Engine Improved Ion Engine Propulsion Aluminum Leg Leg Aluminum Leg Utility Disposable Heat Sink Device Disposable Heat Sink Storage Large Storage Unit Protection Light Armor Plating Weapon Light Assault Rifle Energy Gun Small Laser Ballistic Gun Light Assault Rifle Ballistic Cannon Light Cannon Launcher Rocket Launcher Build | -11 -10 -10 -9 -9 -9 ------- Run | Jun Mat Min Mat Min Exi Slots Evolved 2 | . . . 2 . . Power . | . . . . . . Propulsion 1 | . . . 1 . . Utility 1 | . . . 1 . . Weapon . | . . . . . . Parts Attached 46 | 7 10 2 23 3 1 Power 10 | 2 3 . 5 . . Engine 10 | 2 3 . 5 . . Core . | . . . . . . Reactor . | . . . . . . Propulsion 18 | 2 3 2 9 2 . Treads . | . . . . . . Leg 18 | 2 3 2 9 2 . Wheel . | . . . . . . Hover . | . . . . . . Flight . | . . . . . . Utility 8 | 1 3 . 3 1 . Device 4 | . 2 . 1 1 . Storage 3 | 1 1 . 1 . . Processor . | . . . . . . Hackware . | . . . . . . Protection 1 | . . . 1 . . Artifact . | . . . . . . Weapon 10 | 2 1 . 6 . 1 Energy Gun 1 | 1 . . . . . Energy Cannon . | . . . . . . Ballistic Gun 7 | 1 1 . 5 . . Ballistic Cannon 1 | . . . 1 . . Launcher 1 | . . . . . 1 Special Weapon . | . . . . . . Impact Weapon . | . . . . . . Slashing Weapon . | . . . . . . Piercing Weapon . | . . . . . . Special Melee Weapon . | . . . . . . Unidentified Prototypes 1 | . 1 . . . . Parts Lost 15 | . . . 7 1 7 Power 2 | . . . 2 . . Propulsion 5 | . . . 2 . 3 Utility 2 | . . . . 1 1 Weapon 6 | . . . 3 . 3 Highest Loss Streak 7 | . . . 5 1 7 To Critical Strikes 2 | . . . . . 2 Average Slot Usage (%) 98 | . 96 100 99 99 91 Engine 11 | . 14 14 10 11 8 Leg 31 | . 28 28 33 33 31 Device 15 | . 10 14 15 16 21 Storage 11 | . 14 14 11 11 11 Protection 4 | . . . 6 5 . Energy Gun 4 | . 14 14 . . . Ballistic Gun 13 | . 14 14 14 11 9 Ballistic Cannon 5 | . . . 6 11 8 Naked Turns . | . . . . . . Heaviest Build 36 | 13 19 17 36 35 34 Greatest Support 30 | 20 20 20 30 30 30 Greatest Overweight (x) 3 | 3 . . 1 1 1 Average Overweight (x) . | . . . . 1 . Largest Inventory Capacity 15 | 8 10 10 15 15 15 Average Capacity 13 | 7 9 10 14 15 15 Most Carried 15 | 1 10 10 15 15 14 Average Carried 11 | . 7 10 11 14 13 Final Capacity 15 | 8 10 10 15 15 15 Final Carried 14 | 1 10 10 14 14 13 Class Distribution -------------------- 66% | Scavenger-Mutant 33% | Mutant Dominant Class ---------------- Mutant | -10/Materials Mutant | -10/Mines Scavenger-Mutant | -9/Materials Scavenger-Mutant | -9/Mines Scavenger-Mutant | -9/Exiles Resources | -11 -10 -10 -9 -9 -9 ----------- Run | Jun Mat Min Mat Min Exi Matter Collected 1671 | 219 389 165 794 104 . Remotely . | . . . . . . Salvage Created 1864 | . 423 197 1086 129 29 Parts 146 | . 36 10 82 10 8 Haulers Intercepted 5 | . 1 . 4 . . Recyclers Shooed 3 | . . . 3 . . Parts Field Recycled . | . . . . . . Retrieved Matter . | . . . . . . Parts Self-Destructed . | . . . . . . Prevented . | . . . . . . Kills | -11 -10 -10 -9 -9 -9 ------- Run | Jun Mat Min Mat Min Exi Combat Hostiles Destroyed 48 | . 11 4 23 5 5 Guns 34 | . 11 4 17 1 1 Cannons 11 | . . . 6 4 1 AOE 3 | . . . . . 3 Classes Destroyed 9 | . 4 . 3 1 1 Worker 6 | . . . 6 . . Hauler 5 | . 1 . 4 . . Operator 1 | . 1 . . . . Watcher 3 | . . . 3 . . Swarmer 14 | . 3 . 7 4 . Grunt 22 | . 8 4 9 1 . Brawler 1 | . . . . 1 . Sentry 7 | . . . 7 . . Assembled 5 | . . . . . 5 Best Kill Streak 6 | . 3 2 6 3 4 Combat Bots Only 5 | . 3 2 5 3 3 Max Kills in Single Turn 2 | . 1 1 1 1 2 Gunslinging . | . . . . . . Exploded 2 | . . . . . 2 Melee . | . . . . . . Uniques/NPCs Destroyed 1 | . . . . . 1 EX-BIN (-9/Exiles) Combat | -11 -10 -10 -9 -9 -9 -------- Run | Jun Mat Min Mat Min Exi Damage Taken 2755 | . 429 294 1338 123 571 Core 578 | . 105 63 220 14 176 Absorbed by Shields . | . . . . . . Core Remaining (%) 66 | 100 . 32 . . . Volleys Fired 194 | . 41 20 113 11 9 Largest 2 | . 2 2 2 2 2 Hottest 63 | . 60 60 63 55 55 Shots Fired 388 | . 81 40 226 22 19 Gun 311 | . 81 40 170 11 9 Cannon 74 | . . . 56 11 7 Launcher 3 | . . . . . 3 Special . | . . . . . . Kinetic 320 | . 41 20 221 22 16 Thermal 65 | . 40 20 5 . . Explosive 3 | . . . . . 3 Electromagnetic . | . . . . . . Robot Hit Streak 13 | . 13 10 13 5 2 Robot Miss Streak 5 | . 3 3 4 4 5 Penetration Max . | . . . . . . Secondary Targets 5 | . 2 1 2 . . Max Gunslinging Chain 1 | . 1 1 1 . . Shots Hit Robots 246 | . 54 27 147 12 6 Core Hits 109 | . 24 10 56 8 11 Critical Kills . | . . . . . . Critical Parts Destroyed 1 | . . . 1 . . Critical Strikes 5 | . . . 4 1 . Destroy 1 | . . . 1 . . Blast 4 | . . . 3 1 . Melee Attacks . | . . . . . . Impact . | . . . . . . Slashing . | . . . . . . Piercing . | . . . . . . Sneak Attacks . | . . . . . . Combat Hostiles . | . . . . . . Follow-up Attacks . | . . . . . . Damage Inflicted 3601 | . 652 337 2037 177 398 Guns 2526 | . 652 337 1467 43 27 Cannons 758 | . . . 570 134 54 Explosions 317 | . . . . . 317 Melee . | . . . . . . Ramming . | . . . . . . Kinetic 2816 | . 347 207 2004 177 81 Thermal 468 | . 305 130 33 . . Explosive 317 | . . . . . 317 Electromagnetic . | . . . . . . Impact . | . . . . . . Slashing . | . . . . . . Piercing . | . . . . . . Highest Corruption 2 | . . . 2 2 2 Average Corruption 2 | . . . 2 2 2 Corruption Purged . | . . . . . . Corruption Blocked . | . . . . . . Effects 19 | . . . 2 11 6 Message Errors 4 | . . . 1 3 . Matter Fused 2 | . . . . 2 . Heat Flow Errors 4 | . . . . 2 2 Energy Discharges 1 | . . . 1 . . Parts Rejected 1 | . . . . . 1 Data Loss (minor) 4 | . . . . 3 1 Misfires 2 | . . . . . 2 Alerts 1 | . . . . 1 . Overload Shots . | . . . . . . Overflow Damage 5 | . . . . . 5 Projectiles . | . . . . . . Explosions 5 | . . . . . 5 Melee . | . . . . . . Knockbacks 9 | . . . 8 1 . Impact . | . . . . . . Kinetic 7 | . . . 6 1 . Secondary 2 | . . . 2 . . Self-Inflicted Damage . | . . . . . . Shots . | . . . . . . Rammed . | . . . . . . Targets Rammed . | . . . . . . Kicked . | . . . . . . Crushed . | . . . . . . Highest Temperature 207 | . 111 99 47 147 207 Average Temperature 33 | . 39 56 13 32 65 Received Heat Transfer 1014 | . 201 186 561 6 60 Siege Activations . | . . . . . . Robots Corrupted . | . . . . . . Combat Hostiles . | . . . . . . Parts Fried . | . . . . . . Impact Corruptions . | . . . . . . Robots Melted . | . . . . . . Combat Hostiles . | . . . . . . Parts Melted . | . . . . . . Heat Transferred 1075 | . 700 300 75 . . Parts Sabotaged . | . . . . . . Parts Stolen . | . . . . . . Parts Stripped . | . . . . . . Power Chain Reactions . | . . . . . . Missiles Intercepted . | . . . . . . Alert | -11 -10 -10 -9 -9 -9 ------- Run | Jun Mat Min Mat Min Exi Peak Influence 344 | . 268 155 344 243 . Initial 112 | . . 55 . 112 . Average 136 | . 105 105 167 121 . Maximum Alert Level 1 | . 1 . 1 1 . Low Security (%) 81 | 100 97 100 62 99 . Level 1 18 | . 2 . 37 . . Level 2 . | . . . . . . Level 3 . | . . . . . . Level 4 . | . . . . . . Level 5 . | . . . . . . High Security . | . . . . . . Max Security . | . . . . . . Squads Dispatched 5 | . 3 . 2 . . Investigation . | . . . . . . Extermination . | . . . . . . Reinforcement 5 | . 3 . 2 . . Assault . | . . . . . . Garrison . | . . . . . . Intercept . | . . . . . . Searches Triggered . | . . . . . . Construction Impeded . | . . . . . . Haulers Reinforced . | . . . . . . Active Scanning Responses . | . . . . . . Cargo Convoy Interrupts . | . . . . . . Stealth | -11 -10 -10 -9 -9 -9 --------- Run | Jun Mat Min Mat Min Exi Distress Signals 2 | . . . 2 . . Communications Jammed . | . . . . . . Distress Signals . | . . . . . . Times Spotted 76 | . 19 4 39 8 6 Peak Tracking Total 9 | . 3 2 9 3 8 Tactical Retreats 2 | . 1 . 1 . . Traps | -11 -10 -10 -9 -9 -9 ------- Run | Jun Mat Min Mat Min Exi Traps Triggered 1 | . . . 1 . . Indirectly . | . . . . . . Trap Hack Attempts . | . . . . . . Triggered . | . . . . . . Disarmed . | . . . . . . Reprogrammed . | . . . . . . Reused . | . . . . . . Traps Extracted . | . . . . . . Installed . | . . . . . . Triggered . | . . . . . . Machines | -11 -10 -10 -9 -9 -9 ---------- Run | Jun Mat Min Mat Min Exi Machines Disabled 3 | . . . . . 3 Max in Single Turn 1 | . . . . . 1 Machines Repaired . | . . . . . . Machines Sabotaged . | . . . . . . Overloaded Fab Kills . | . . . . . . Hacking | -11 -10 -10 -9 -9 -9 --------- Run | Jun Mat Min Mat Min Exi Machines Accessed 9 | . 3 . 6 . . Terminals 8 | . 3 . 5 . . Fabricators . | . . . . . . Repair Stations . | . . . . . . Recycling Units . | . . . . . . Scanalyzers 1 | . . . 1 . . Garrison Access . | . . . . . . Total Hacks 20 | . 5 . 15 . . Successful 10 | . 3 . 7 . . Failed 10 | . 2 . 8 . . Catastrophic 2 | . 1 . 1 . . Database Lockouts . | . . . . . . Manual 5 | . 2 . 3 . . Terminals 18 | . 5 . 13 . . Fabricators . | . . . . . . Repair Stations . | . . . . . . Recycling Units . | . . . . . . Scanalyzers 2 | . . . 2 . . Garrison Access . | . . . . . . Terminal Hacks 9 | . 3 . 6 . . Prototype ID Bank 4 | . . . 4 . . Branch Access Points 1 | . . . 1 . . Locate Traps 2 | . 1 . 1 . . Dispatch Records 1 | . 1 . . . . Zone Layout 1 | . 1 . . . . Fabricator Hacks . | . . . . . . Repair Station Hacks . | . . . . . . Recycling Unit Hacks . | . . . . . . Scanalyzer 1 | . . . 1 . . Insert Component 1 | . . . 1 . . Garrison Access Hacks . | . . . . . . Unauthorized Hacks . | . . . . . . Terminals . | . . . . . . Fabricators . | . . . . . . Repair Stations . | . . . . . . Recycling Units . | . . . . . . Scanalyzers . | . . . . . . Garrison Access . | . . . . . . Data Cores Recovered . | . . . . . . Used . | . . . . . . Hacking Detections 8 | . 2 . 6 . . Full Trace Events . | . . . . . . Feedback Events . | . . . . . . Feedback Blocked . | . . . . . . Robot Schematics Acquired . | . . . . . . Robots Built . | . . . . . . Authchips . | . . . . . . Time . | . . . . . . Total Robot Build Rating . | . . . . . . Part Schematics Acquired . | . . . . . . Parts Built . | . . . . . . Authchips . | . . . . . . Time . | . . . . . . Total Part Build Rating . | . . . . . . Parts Repaired . | . . . . . . Time . | . . . . . . Parts Recycled . | . . . . . . Recycled Matter . | . . . . . . Retrieved Matter . | . . . . . . Retrieved Components . | . . . . . . Parts Scanalyzed . | . . . . . . Part Schematics Acquired . | . . . . . . Parts Damaged . | . . . . . . Bothacking | -11 -10 -10 -9 -9 -9 ------------ Run | Jun Mat Min Mat Min Exi Used RIF Installer . | . . . . . . Robots Hacked . | . . . . . . Non-combat . | . . . . . . Combat . | . . . . . . Robot Hacks Applied . | . . . . . . Relay Couplers Released . | . . . . . . Fabnet Peak Effective % . | . . . . . . Robots Rewired . | . . . . . . Allies Hacked . | . . . . . . Hacks Repelled . | . . . . . . Allies | -11 -10 -10 -9 -9 -9 -------- Run | Jun Mat Min Mat Min Exi Total Allies 5 | . . . . 5 . Largest Group 3 | . . . . 3 2 Highest-Rated Group 40 | . . . . 40 39 Highest-Rated Ally 31 | . . . . 31 31 Total Orders . | . . . . . . Ally Attacks 24 | . . . . 24 . Total Damage 185 | . . . . 185 . Kills 3 | . . . . 3 . Allies Corrupted 1 | . . . . 1 . Allies Melted . | . . . . . . Intel | -11 -10 -10 -9 -9 -9 ------- Run | Jun Mat Min Mat Min Exi Robot Analysis Total . | . . . . . . Derelict Logs Recovered 2 | . . 1 . 1 . Drone Launches . | . . . . . . Drone Recoveries . | . . . . . . Exploration | -11 -10 -10 -9 -9 -9 ------------- Run | Jun Mat Min Mat Min Exi Turns Passed 3900 | 60 657 412 1744 751 276 Spaces Moved 1859 | 41 364 288 658 374 134 Core 12 | 12 . . . . . Treads . | . . . . . . Legs 1847 | 29 364 288 658 374 134 Wheels . | . . . . . . Hover . | . . . . . . Flight . | . . . . . . Fastest Speed 50 | 50 120 120 120 190 120 Average Speed 161 | 121 120 120 186 190 176 Slowest Speed 200 | 200 120 120 190 190 190 Overloaded Moves . | . . . . . . Propulsion Burnouts . | . . . . . . Robots Hopped . | . . . . . . Cave-ins Triggered . | . . . . . . Exploration Rate (%) 50 | 4 71 57 57 71 40 Regions Visited 5 Branch Regions 3 Pre-discovered Areas 1 | . . . . 1 . Known Exits Taken 1 | . . . 1 . . Unknown Exits Taken 4 | 1 1 1 . 1 . Scrap Searched 2 | . . . . 2 . Spaces Dug . | . . . . . . Terrain Destroyed 13 | . . . . . 13 Melee . | . . . . . . Projectile . | . . . . . . AOE 13 | . . . . . 13 Terrain Rammed . | . . . . . . Walls Destroyed . | . . . . . . Machines Disabled . | . . . . . . Actions | -11 -10 -10 -9 -9 -9 --------- Run | Jun Mat Min Mat Min Exi Total 2386 | 47 502 315 967 397 158 Wait 234 | . 74 4 139 3 14 Move 1854 | 40 363 287 657 373 134 Hop . | . . . . . . Pick Up 31 | . 9 . 19 3 . Fast Attach 7 | 6 1 . . . . Attach 12 | . . . 10 1 1 Detach 1 | . . . 1 . . Swap 27 | 1 9 2 13 2 . Drop 26 | . 5 2 15 4 . Fire 194 | . 41 20 113 11 9 Melee . | . . . . . . Ram . | . . . . . . Kick . | . . . . . . Crush . | . . . . . . Escape Stasis . | . . . . . . Rewire . | . . . . . . Trap . | . . . . . . Miscellaneous . | . . . . . . Route ------- -11/Junkyard -10/Materials (discovered 3 exits: *Mat / [*Min x2]) -10/Mines -9/Materials (discovered 3 exits: [*Mat] / *Min x2) -9/Mines (discovered 4 exits: [*Mat x2] / *Exi / [*Zio]) -9/Exiles (discovered 1 exit: [*Min]) History --------- Turn | Location | Event 20 | -11/Junkyard | Discovered new exit (range 15) 61 | -11/Junkyard | Entered Materials 310 | -10/Materials | Build established: Mutant 398 | -10/Materials | Discovered new exit (range 4) 502 | -10/Materials | Discovered new exit (range 9) 695 | -10/Materials | Discovered new exit (range 11) 718 | -10/Materials | Entered Mines 735 | -10/Mines | Core integrity fell below 50% 868 | -10/Mines | Learned Materials machine intel 1123 | -10/Mines | Discovered new exit (range 5) 1130 | -10/Mines | Entered Materials 1130 | -9/Materials | Evolved 2 slots: Propulsion x1, Utility x1 1131 | -9/Materials | Loaded intel: 42 machine locations 1519 | -9/Materials | Build established: Scavenger-Mutant 1821 | -9/Materials | Lost 5 parts (1p1n3w) 2197 | -9/Materials | Discovered new exit (range 9) 2370 | -9/Materials | Identified exit to Mines 2721 | -9/Materials | Core integrity fell below 50% 2874 | -9/Materials | Entered Mines 2875 | -9/Mines | A Derelict revealed a hidden shortcut to a safe place 2947 | -9/Mines | Assisted by bots powering up and referring to "LRC-V3" 2985 | -9/Mines | Discovered new exit (range 7) 3147 | -9/Mines | Learned Materials interactive machine intel 3381 | -9/Mines | Discovered new exit (range 11) 3473 | -9/Mines | Learned location of Storage (-8) 3520 | -9/Mines | Found a hidden stash of uninstalled traps 3617 | -9/Mines | Deemed a non-threat by the Exiles lab entrance 3617 | -9/Mines | Discovered new exit (range 5) 3625 | -9/Mines | Entered Exiles 3625 | -9/Exiles | Accompanied by 2 allies 3650 | -9/Exiles | Discovered new exit (range 15) 3655 | -9/Exiles | Led the pair of lost Derelicts to a safe place 3671 | -9/Exiles | Met 8R-AWN 3705 | -9/Exiles | Met EX-HEX 3770 | -9/Exiles | Met EX-BIN 3800 | -9/Exiles | Aligned with FarCom system 3801 | -9/Exiles | Attacked by the Exiles 3851 | -9/Exiles | Destroyed EX-BIN 3894 | -9/Exiles | Core integrity fell below 20% 3901 | -9/Exiles | Destroyed by 8R-AWN with 8R-AWN's Boregun Last Messages --------------- 03882_ Penetrated by HV Slug. 03882_ Rocket Launcher destroyed. 03882_ Penetrated by HV Slug. 03882_ Aluminum Leg destroyed. 03884_ HV Slug penetrates Wall. 03884_ HV Slug penetrates EX-Vault Access. 03886_ Penetrated by HV Slug. 03886_ Seismic Detector destroyed. 03889_ HV Slug penetrates Wall. 03889_ Penetrated by HV Slug. 03891_ Critical hit (Destroy). 03891_ Aluminum Leg destroyed. 03891_ Penetrated by HV Slug. 03891_ Critical hit (Destroy). 03891_ Aluminum Leg destroyed. 03893_ Penetrated by HV Slug. 03893_ HV Slug penetrates Wall. 03895_ Penetrated by HV Slug. 03899_ HV Slug penetrates Wall. 03901_ Penetrated by HV Slug. Map ----- +----------------------------------------------------+ | | | | | | | | | | | | | | | | | | | | | | | | | | | | | | | | | ?????????????????????????????????????????????????? | | ?????????????????????????????????????????????????? | | ?????????????????????????????????????????????????? | | ?????????????????????????????????????????????????? | | ?????????????????????????????????????????????????? | | ????????????????????########?????????????????????? | | ????????????????????#X #?????????????????????? | | ????????????????????## #?????????????????????? | | ?????????????????????# #?????????????????????? | | ?????????????????????# @ #???###???????????????? | | ?????????????????????# ;#?"""""#?????????????? | | ?????????????????????# ;# """#?????????????? | | ?????????????????????# X""#?????????????? | | ?????????????????????# ;# """#?????????????? | | ????????????????###??# ##""""""#?????????????? | | ???????????????"""""?# #??####???????????????? | | ???????????????""" ## #?????????????????????? | | ?????????????#""X" #?????????????????????? | | ?????????????#" #?????????????????????? | | ?????????????#" ## #?????????????????????? | | ?????????????#""""""?# #?#########???????????? | | ???????????????"###??# #?#"""""""#???????????? | | ?????????????????????# #?#"""""""#???????????? | | ?????????????????????# #?#"""""""#???????????? | | ????????????????????## g ###"" """"#???????????? | | ????????????????????#" """"#???????????? | | ????????????????????# * """#???????????? | | ????????????????????# """#???????????? | | ????????????????????# != """#???????????? | | ????????????????????#"*%! """#???????????? | | ???????????????????? =! """##??????????? | | ???????????????????## """""??????????? | | ????????????????????# """##??????????? | | ????????????????????# "X" """""??????????? | +----------------------------------------------------+ Best States ------------- Heat Dissipation 28 Coolant Potential 50 Energy Generation 14 Energy Capacity 280 Matter Stores 300 Matter Capacity 300 Sight Range 16 Terrain Scan Density 10 Armor Coverage 150 Evasion (%) 55 Item Schematics ----------------- None Robot Schematics ------------------ None Fabricated ------------ Nothing Alien Tech Used ----------------- None Achievements -------------- None Challenges ------------ None Game ------ Seed SpreadHeatCompactor Manual? 0 Play Time 00:40:39 Cumulative 39.7 hours Start 2023.03.29 @ 06:01:03 End 2023.04.03 @ 05:21:49 Sessions 4 Manual Loads 0 Difficulty Rogue Special Mode None Game No. 43 Rogue 43 Adventurer 0 Explorer 0 Win Type - Total 0 Types 0/0/0/0/0/0/0/0/0 Lore% 24 Gallery% 30 Achievement% 23 Wizard Run 0 Options --------- ASCII 1 Keyboard 1 Movement Numpad Keybinds 0 Fullscreen 1 Font 18/SmallcapsGlow Map View 76x50 Tactical HUD 1 Map Filters NONE Filters NONE Steam 1 RUN: 28154e4e-eab5-428c-a61c-eabe36837069